bitfinex-derivatives/quotes_SOLF0:USTF0_20250606
["timestamp","ask_amount","ask_price","bid_price","bid_amount"]
[1749190565440,7.30627184,147.78,147.77,0.04866338]
[1749190565638,4.52757228,147.78,147.77,0.04866338]
[1749190565839,14.06813842,147.78,147.77,0.04866338]
[1749190566039,2.80018836,147.8,147.77,0.04866338]
[1749190566235,7.30453766,147.79,147.77,0.04866338]
[1749190566537,7.30453766,147.78,147.77,0.04866338]
[1749190567441,2.77684499,147.78,147.77,0.04866338]
[1749190567638,6.7633,147.79,147.77,0.04866338]
[1749190567843,4.52004231,147.78,147.77,0.04866338]
[1749190568143,7.29898512,147.78,147.77,0.04866338]
[1749190568934,4.5213356,147.78,147.77,0.04866338]
[1749190569139,7.29881549,147.78,147.77,6.81266338]
[1749190569340,7.29877989,147.78,147.77,6.81266338]
[1749190569540,2.80018836,147.8,147.77,6.81266338]
[1749190569744,7.2931095,147.79,147.77,6.81266338]
[1749190569945,4.52201441,147.78,147.77,6.81266338]
[1749190570152,7.29381547,147.78,147.77,6.81266338]
[1749190570547,7.28295199,147.78,147.77,6.81266338]
[1749190570947,7.28238762,147.78,147.77,6.81266338]
[1749190571149,7.28238439,147.78,147.77,6.81266338]
[1749190571446,2.80018836,147.8,147.78,6.7634]
[1749190571643,4.51126479,147.79,147.78,6.7634]
[1749190571946,7.28233008,147.79,147.78,6.7634]
[1749190572445,7.28199829,147.79,147.78,6.7634]
[1749190572635,2.77074368,147.79,147.78,6.7634]
[1749190572841,4.50572544,147.79,147.78,6.7634]
[1749190573044,2.77074368,147.79,147.78,6.7634]
[1749190573235,2.80018836,147.8,147.79,6.7631]
[1749190573441,7.30586676,147.8,147.79,6.7631]
[1749190573639,10.07637275,147.8,147.79,6.7631]
[1749190574239,10.08239827,147.8,147.79,6.7631]
[1749190574438,2.80018836,147.8,147.79,6.7631]
[1749190574639,5.57656794,147.8,147.79,6.7631]
[1749190574949,10.09838348,147.8,147.79,6.7631]
[1749190575144,7.32200615,147.8,147.79,6.7631]
[1749190575349,7.32201471,147.8,147.78,6.7634]
[1749190575548,2.77642189,147.79,147.77,0.04866338]
[1749190575745,7.29903662,147.78,147.77,0.04866338]
[1749190575947,7.30149426,147.78,147.77,0.04866338]
[1749190576152,2.77715293,147.78,147.72,8.33291796]
[1749190576352,38.88439471,147.77,147.72,8.33291796]
[1749190576551,2.77732701,147.76,147.71,13.14044921]
[1749190576851,34.36,147.77,147.72,6.7662]
[1749190577049,7.35255346,147.76,147.73,0.04808507]
[1749190577251,0.05059246,147.76,147.73,0.04808507]
[1749190577745,2.77591599,147.75,147.73,0.04808507]
[1749190577951,0.05059246,147.76,147.73,0.04808507]
[1749190578251,7.29753954,147.75,147.73,0.04808507]
[1749190578446,0.05059246,147.76,147.73,0.04808507]
[1749190578652,7.29747879,147.75,147.73,0.04808507]
[1749190578944,2.77592538,147.74,147.73,0.04808507]
[1749190579150,14.06289813,147.74,147.73,0.04808507]
[1749190579353,14.06219011,147.74,147.73,0.04808507]
[1749190579554,9.54061736,147.74,147.73,0.04808507]
[1749190579745,9.53139737,147.74,147.73,0.04808507]
[1749190579946,9.53140236,147.74,147.73,0.04808507]
[1749190580146,9.53140304,147.74,147.73,0.04808507]
[1749190580351,14.05305923,147.74,147.73,0.04808507]
[1749190580747,9.53147039,147.74,147.73,0.04808507]
[1749190581149,9.52724912,147.74,147.73,0.04808507]
[1749190581454,14.01825663,147.74,147.73,0.04808507]
[1749190581648,14.01821585,147.74,147.73,0.04808507]
[1749190581852,14.01827279,147.74,147.73,0.04808507]
[1749190582156,4.49159811,147.74,147.73,0.04808507]
[1749190582356,7.25287279,147.74,147.73,0.04808507]
[1749190582958,6.765,147.75,147.73,0.04808507]
[1749190583256,9.52665898,147.74,147.73,0.04808507]
[1749190583455,14.00593805,147.74,147.73,0.04808507]
[1749190583654,9.52665898,147.74,147.73,0.04808507]
[1749190583856,6.7654,147.74,147.73,0.04808507]
[1749190584154,14.00593805,147.74,147.73,0.04808507]
[1749190584356,6.7654,147.74,147.73,0.04808507]
[1749190584557,11.24468222,147.74,147.73,0.04808507]
[1749190584858,13.99291918,147.74,147.73,0.04808507]
[1749190585159,4.48018793,147.74,147.73,0.04808507]
[1749190585356,0.05059246,147.76,147.73,0.04808507]
[1749190585557,4.48012667,147.75,147.73,0.04808507]
[1749190585754,6.81519246,147.76,147.73,0.04808507]
[1749190585960,2.74860031,147.75,147.73,0.04808507]
[1749190586153,6.81519246,147.76,147.73,0.04808507]
[1749190586361,2.74653722,147.75,147.73,0.04808507]
[1749190586561,0.05059246,147.76,147.73,0.04808507]
[1749190586757,2.74645782,147.75,147.73,0.04808507]
[1749190586961,0.05059246,147.76,147.73,0.04808507]
[1749190587157,2.74651539,147.75,147.73,0.04808507]
[1749190587356,0.05059246,147.76,147.73,0.04808507]
[1749190587560,6.81539246,147.76,147.73,0.04808507]
[1749190587854,2.74658103,147.75,147.73,0.04808507]
[1749190588058,6.81539246,147.76,147.73,0.04808507]
[1749190588258,0.05059246,147.76,147.73,6.81368507]
[1749190589459,0.05059246,147.76,147.73,0.04808507]
[1749190589663,0.05059246,147.76,147.74,4.80753125]
[1749190590361,0.05059246,147.76,147.73,0.04808507]
[1749190591069,0.05059246,147.76,147.74,6.7654]
[1749190592064,0.05059246,147.76,147.75,6.7649]
[1749190592567,0.05059246,147.76,147.74,6.7652]
[1749190592774,0.05059246,147.76,147.73,0.04808507]
[1749190593482,2.75296569,147.75,147.73,0.04808507]
[1749190593673,0.05059246,147.76,147.73,0.04808507]
[1749190594173,6.7649,147.75,147.73,0.04808507]
[1749190594370,0.05059246,147.76,147.73,0.04808507]
[1749190594878,7.2116909,147.75,147.73,0.04808507]
[1749190595177,9.52825681,147.74,147.73,0.04808507]
[1749190595475,6.7654,147.74,147.73,0.04808507]
[1749190595777,9.52825569,147.74,147.73,0.04808507]
[1749190596076,6.7654,147.74,147.73,0.04808507]
[1749190597676,6.7651,147.75,147.73,0.04808507]
[1749190599677,6.7654,147.74,147.73,0.04808507]
[1749190600278,9.51434063,147.75,147.73,0.04808507]
[1749190600480,6.7651,147.75,147.73,0.04808507]
[1749190603285,6.81519246,147.76,147.73,0.04808507]
[1749190603785,9.51353244,147.75,147.73,0.04808507]
[1749190603981,6.7649,147.75,147.73,0.04808507]
[1749190605287,6.7654,147.74,147.73,0.04808507]
[1749190606276,2.74902384,147.74,147.67,7.12583125]
[1749190606483,34.46,147.73,147.67,7.12583125]
[1749190606689,34.46,147.73,147.68,6.768]
[1749190606988,6.7671,147.71,147.66,4.80753125]
[1749190607182,39.26753125,147.73,147.67,6.7682]
[1749190607482,0.04979224,147.71,147.69,0.04887984]
[1749190608390,6.81679224,147.71,147.69,0.04887984]
[1749190608782,0.04979224,147.71,147.69,0.04887984]
[1749190609389,6.81689224,147.71,147.69,0.04887984]
[1749190610284,0.04979224,147.71,147.69,0.04887984]
[1749190610882,6.81699224,147.71,147.69,0.04887984]
[1749190611088,0.04979224,147.71,147.69,0.04887984]
[1749190611491,6.7672,147.7,147.69,0.04887984]
[1749190615292,4.85732349,147.71,147.62,15.29444921]
[1749190615493,4.80753125,147.68,147.62,4.80753125]
[1749190615695,6.7693,147.66,147.62,11.57813125]
[1749190615882,34.46,147.67,147.62,4.80753125]
[1749190616082,34.46,147.67,147.66,6.7691]
[1749190616291,0.05044183,147.68,147.66,4.80753125]
[1749190616687,0.05044183,147.68,147.67,6.7686]
[1749190617195,0.05044183,147.68,147.66,4.80753125]
[1749190617495,0.05044183,147.68,147.66,6.7688]
[1749190618694,0.05044183,147.68,147.67,6.7686]
[1749190620588,0.05044183,147.68,147.67,11.57613125]
[1749190621397,34.46,147.7,147.69,6.7677]
[1749190621789,41.2261,147.73,147.69,6.7677]
[1749190622194,34.46,147.73,147.67,4.80753125]
[1749190622395,0.05042417,147.71,147.69,0.0472294]
[1749190623090,0.05042417,147.71,147.7,6.7669]
[1749190625190,34.46,147.76,147.69,13.18767861]
[1749190625398,34.46,147.76,147.72,4.80753125]
[1749190625897,34.46,147.76,147.74,6.7651]
[1749190626098,34.50876364,147.76,147.74,6.81136756]
[1749190626900,34.50876364,147.76,147.74,0.04626756]
[1749190627293,9.51083136,147.75,147.74,0.04626756]
[1749190627595,2.74593136,147.75,147.68,9.17493125]
[1749190627797,2.74593136,147.74,147.68,9.17493125]
[1749190627993,2.74631185,147.73,147.68,13.75123125]
[1749190628193,39.26753125,147.76,147.68,13.75123125]
[1749190628194,34.46,147.72,147.68,13.75123125]
[1749190628490,0.04845358,147.71,147.69,0.04547885]
[1749190628696,0.04845358,147.71,147.69,6.81307885]
[1749190630399,0.04845358,147.71,147.7,6.7672]
[1749190636610,0.04845358,147.71,147.69,6.81307885]
[1749190636808,0.04845358,147.71,147.69,0.04547885]
[1749190637513,6.7672,147.7,147.69,0.04547885]
[1749190637907,0.04845358,147.71,147.69,0.04547885]
[1749190639015,0.04845358,147.71,147.69,6.81277885]
[1749190639212,0.04845358,147.71,147.69,0.04547885]
[1749190639612,0.04845358,147.71,147.69,6.81307885]
[1749190639913,0.04845358,147.71,147.69,0.04547885]
[1749190641213,0.04845358,147.71,147.7,6.7672]
[1749190642612,0.04845358,147.71,147.69,6.81297885]
[1749190645210,0.04845358,147.71,147.69,0.04547885]
[1749190645409,0.04845358,147.71,147.7,6.7672]
[1749190645609,0.04845358,147.71,147.69,0.04547885]
[1749190645912,0.04845358,147.71,147.69,6.81297885]
[1749190646517,0.04845358,147.71,147.7,6.7672]
[1749190646714,0.04845358,147.71,147.7,11.57473125]
[1749190647613,34.3,147.75,147.7,4.80753125]
[1749190647809,34.3,147.75,147.72,4.80753125]
[1749190648208,9.32863125,147.79,147.72,4.80753125]
[1749190648209,4.5211,147.79,147.72,4.80753125]
[1749190648414,37.04459461,147.78,147.74,4.80753125]
[1749190648615,0.04487501,147.77,147.75,0.04649206]
[1749190649416,2.74453899,147.76,147.75,0.04649206]
[1749190649815,0.04487501,147.77,147.75,0.04649206]
[1749190650017,6.7645,147.76,147.75,0.04649206]
[1749190650213,9.5090436,147.76,147.75,0.04649206]
[1749190650413,4.85240626,147.77,147.69,4.80753125]
[1749190650615,4.80753125,147.77,147.69,4.80753125]
[1749190651015,2.75114104,147.76,147.69,4.80753125]
[1749190651315,6.7662,147.73,147.69,11.57503125]
[1749190651618,0.04472302,147.72,147.7,0.04568775]
[1749190652520,6.81102302,147.72,147.7,0.04568775]
[1749190653117,0.04472302,147.72,147.7,0.04568775]
[1749190653617,9.51923864,147.71,147.7,0.04568775]
[1749190653816,9.51914696,147.71,147.7,0.04568775]
[1749190654018,7.55992565,147.71,147.65,6.7692]
[1749190654219,37.05264257,147.7,147.65,6.7692]
[1749190654521,2.75271124,147.69,147.64,6.7698]
[1749190654711,34.3,147.7,147.64,6.7698]
[1749190654914,0.04762273,147.68,147.66,0.0479439]
[1749190655114,6.81612273,147.68,147.66,0.0479439]
[1749190655311,0.04762273,147.68,147.66,0.0479439]
[1749190657223,6.81602273,147.68,147.66,0.0479439]
[1749190658223,0.04762273,147.68,147.66,0.0479439]
[1749190658922,6.81582273,147.68,147.66,0.0479439]
[1749190660920,6.7686,147.67,147.66,0.0479439]
[1749190661222,0.04762273,147.68,147.66,0.0479439]
[1749190661621,6.81592273,147.68,147.66,0.0479439]
[1749190665032,6.7686,147.67,147.66,0.0479439]
[1749190665224,0.04762273,147.68,147.66,0.0479439]
[1749190666520,6.81582273,147.68,147.66,0.0479439]
[1749190667729,6.7686,147.67,147.66,0.0479439]
[1749190668130,0.04762273,147.68,147.66,0.0479439]
[1749190668534,6.81592273,147.68,147.66,0.0479439]
[1749190671728,0.04762273,147.68,147.66,0.0479439]
[1749190673527,0.04762273,147.68,147.66,6.8168439]
[1749190675233,0.04762273,147.68,147.66,0.0479439]
[1749190677132,34.06,147.73,147.67,4.80753125]
[1749190677333,40.8261,147.73,147.7,6.7671]
[1749190677533,40.8261,147.73,147.67,4.80753125]
[1749190677730,40.8261,147.73,147.69,6.7676]
[1749190678133,0.04516876,147.72,147.7,0.04788162]
[1749190679535,6.81156876,147.72,147.7,0.04788162]
[1749190681634,0.04516876,147.72,147.7,0.04788162]
[1749190683042,6.81156876,147.72,147.7,0.04788162]
[1749190683244,0.04516876,147.72,147.7,0.04788162]
[1749190685141,6.81156876,147.72,147.7,0.04788162]
[1749190685335,0.04516876,147.72,147.7,0.04788162]
[1749190687744,34.06,147.81,147.71,38.86753125]
[1749190687943,2.74591437,147.8,147.77,6.764]
[1749190688143,2.74586175,147.79,147.77,6.764]
[1749190688342,40.8223,147.81,147.77,6.764]
[1749190688743,2.7885864,147.8,147.78,0.04562975]
[1749190688939,2.74564736,147.79,147.78,0.04562975]
[1749190689144,34.06,147.85,147.78,4.84926248]
[1749190689339,2.74518544,147.84,147.8,4.80363273]
[1749190689533,2.74513908,147.83,147.8,4.80363273]
[1749190689743,34.06,147.85,147.8,4.80363273]
[1749190689940,34.06,147.85,147.82,6.7617]
[1749190690139,2.74488203,147.84,147.82,6.81051377]
[1749190690342,2.74487252,147.83,147.82,6.81051377]
[1749190690543,2.74484165,147.83,147.82,6.81051377]
[1749190690739,34.08736626,147.85,147.82,0.04881377]
[1749190690941,2.74479475,147.84,147.82,0.04881377]
[1749190691142,34.08736626,147.85,147.82,0.04881377]
[1749190691546,2.7449826,147.84,147.82,0.04881377]
[1749190691846,9.50637572,147.83,147.82,0.04881377]
[1749190692046,9.50637481,147.83,147.82,0.04881377]
[1749190692247,6.7613,147.83,147.82,0.04881377]
[1749190692639,9.50640694,147.83,147.82,0.04881377]
[1749190692835,9.50640277,147.83,147.82,0.04881377]
[1749190693038,6.7613,147.83,147.82,0.04881377]
[1749190693237,9.50640277,147.83,147.82,0.04881377]
[1749190693437,2.74525881,147.83,147.82,0.04881377]
[1749190693645,34.08736626,147.85,147.82,0.04881377]
[1749190693846,2.7451285,147.84,147.82,0.04881377]
[1749190694044,2.74512867,147.83,147.82,0.04881377]
[1749190694239,6.7609,147.84,147.82,0.04881377]
[1749190694446,34.08736626,147.85,147.82,0.04881377]
[1749190694949,0.02736626,147.85,147.84,4.80111947]
[1749190695245,0.02736626,147.85,147.84,11.56191947]
[1749190695846,34.02,147.88,147.86,6.7598]
[1749190696245,34.02,147.88,147.86,4.80111947]
[1749190696458,423.82,147.91,147.86,4.80111947]
[1749190696648,423.82,147.91,147.85,4.80111947]
[1749190696848,2.7547157,147.9,147.87,0.04941314]
[1749190697045,34.02,147.94,147.87,4.84666286]
[1749190697250,2.75418058,147.93,147.9,4.79724972]
[1749190697447,34.02,147.94,147.92,4.79724972]
[1749190697754,34.02,147.94,147.92,11.55434972]
[1749190698249,2.73711092,148.0,147.93,4.79297583]
[1749190698447,2.73711092,148.0,147.98,4.79011856]
[1749190699354,34.02,148.02,148.0,6.7535]
[1749190699550,34.02,148.02,148.0,0.04883328]
[1749190700347,6.7531,148.01,148.0,0.04883328]
[1749190700651,6.76,148.01,147.92,4.79127144]
[1749190700852,6.7555,147.96,147.92,4.79127144]
[1749190701067,40.7555,147.96,147.92,4.79127144]
[1749190701648,0.04883328,147.95,147.93,0.04704974]
[1749190702259,6.80473328,147.95,147.93,0.04704974]
[1749190703255,0.04883328,147.95,147.93,0.04704974]
[1749190704764,6.80493328,147.95,147.93,0.04704974]
[1749190705361,0.04883328,147.95,147.93,0.04704974]
[1749190707164,0.04883328,147.95,147.87,4.79127144]
[1749190707366,6.5674,148.0,147.85,2.0994]
[1749190707566,4.79127144,147.98,147.9,4.79127144]
[1749190707762,6.7554,147.96,147.9,4.79127144]
[1749190708065,0.04328951,147.94,147.92,0.04732762]
[1749190708667,34.0,147.99,147.92,4.83859906]
[1749190708866,34.0,147.99,147.94,4.79127144]
[1749190709269,34.0,147.99,147.96,6.7554]
[1749190709671,0.04841895,147.99,147.96,0.04802632]
[1749190709972,34.04841895,147.99,147.98,6.7545]
[1749190710173,4.79127144,148.05,147.97,4.79127144]
[1749190710367,34.0,148.02,147.99,4.79127144]
[1749190710769,34.0,148.05,148.01,4.79127144]
[1749190711164,397.71324208,148.19,148.02,0.04945899]
[1749190711367,397.71324208,148.19,147.96,28.51772177]
[1749190711368,8.20097483,148.16,148.09,0.04894877]
[1749190711570,10.44596221,148.15,148.11,0.04549554]
[1749190711767,8.20296221,148.13,148.12,0.04310365]
[1749190712070,33.98,148.13,148.11,0.04316067]
[1749190712271,33.98,148.13,148.11,0.04924434]
[1749190714066,389.28,148.19,148.11,0.04924434]
[1749190714271,33.98,148.18,148.14,0.04531997]
[1749190714672,8.20247779,148.17,148.14,0.04531997]
[1749190715874,8.20247779,148.15,148.04,36.1418]
[1749190716070,8.20247779,148.13,148.05,8.20247779]
[1749190716278,36.0992,148.12,148.05,8.20247779]
[1749190716574,6.7486,148.11,148.05,14.95337779]
[1749190716870,6.7486,148.11,148.07,0.04677903]
[1749190716871,0.04309996,148.09,148.07,0.04677903]
[1749190718974,6.79269996,148.09,148.07,0.04677903]
[1749190719769,0.04309996,148.09,148.07,0.04677903]
[1749190723181,0.04309996,148.09,148.08,14.95247779]
[1749190723375,33.98,148.12,148.08,8.20247779]
[1749190723581,41.6268,148.15,148.1,14.95107779]
[1749190723779,34.88,148.15,148.1,8.20247779]
[1749190724277,34.88,148.15,148.12,6.7478]
[1749190725084,41.6268,148.15,148.11,6.79660407]
[1749190725286,41.6268,148.15,148.11,0.04810407]
[1749190725579,34.88,148.15,148.11,0.04810407]
[1749190725880,6.7473,148.14,148.11,0.04810407]
[1749190727681,41.6269,148.15,148.11,0.04810407]
[1749190728281,41.6269,148.15,148.11,6.79660407]
[1749190728486,41.6269,148.15,148.11,0.04810407]
[1749190728787,6.7475,148.14,148.11,0.04810407]
[1749190729185,34.88,148.15,148.11,0.04810407]
[1749190729388,34.88,148.15,148.11,6.79640407]
[1749190730786,34.88,148.15,148.11,0.04810407]
[1749190731185,34.88,148.15,148.11,6.79640407]
[1749190731485,34.88,148.15,148.11,0.04810407]
[1749190731883,34.88,148.15,148.12,8.20247779]
[1749190732079,34.86,148.18,148.12,8.20247779]
[1749190732284,34.86,148.18,148.14,6.79061712]
[1749190732285,41.6055,148.18,148.14,6.79061712]
[1749190733788,34.86,148.18,148.14,0.04381712]
[1749190734089,34.86,148.18,148.14,8.24629491]
[1749190734284,34.86,148.18,148.14,0.04381712]
[1749190734587,41.6057,148.18,148.14,0.04381712]
[1749190734983,34.86,148.18,148.14,0.04381712]
[1749190735186,34.86,148.18,148.14,8.24629491]
[1749190735384,4.384,148.22,148.14,8.24629491]
[1749190735584,34.86,148.21,148.17,0.04304537]
[1749190735889,34.86,148.22,148.18,6.7451]
[1749190736090,34.86,148.22,148.17,0.04304537]
[1749190736297,6.7441,148.21,148.17,6.78874537]
[1749190736990,41.6037,148.22,148.17,0.04304537]
[1749190737590,6.744,148.21,148.17,0.04304537]
[1749190737792,34.86,148.22,148.17,0.04304537]
[1749190738190,6.7436,148.22,148.17,0.04304537]
[1749190738999,34.86,148.23,148.18,8.20247779]
[1749190739198,34.86,148.23,148.17,8.24552316]
[1749190739602,6.744,148.22,148.18,6.7451]
[1749190739899,34.86,148.23,148.17,8.24552316]
[1749190740296,2.73711092,148.26,148.17,34.90304537]
[1749190740597,2.73711092,148.26,148.2,0.04654349]
[1749190741498,8.1903011,148.25,148.2,0.04654349]
[1749190741691,8.19084723,148.25,148.2,0.04654349]
[1749190742000,8.1917099,148.24,148.2,0.04654349]
[1749190742210,34.84,148.23,148.2,0.04654349]
[1749190742501,6.744,148.21,148.2,0.04654349]
[1749190742700,8.23681162,148.22,148.12,34.84]
[1749190743002,8.1917099,148.2,148.12,8.1917099]
[1749190743202,34.84,148.19,148.12,8.1917099]
[1749190743596,0.0444338,148.17,148.14,0.05004922]
[1749190744800,0.0444338,148.17,148.15,6.7467]
[1749190745700,0.0444338,148.17,148.14,0.05004922]
[1749190745902,8.2361437,148.17,148.08,2.3139]
[1749190746094,8.1917099,148.13,148.05,144.50523465]
[1749190746299,34.84,148.13,148.07,8.1917099]
[1749190746607,34.84,148.13,148.05,136.31352475]
[1749190746608,34.84,148.13,148.11,6.7486]
[1749190746902,34.84,148.13,148.09,8.1917099]
[1749190747103,0.04374005,148.12,148.1,0.04526861]
[1749190748411,6.79184005,148.12,148.1,0.04526861]
[1749190748804,0.04374005,148.12,148.1,0.04526861]
[1749190751111,0.04374005,148.12,148.04,8.1917099]
[1749190751410,43.0317099,148.13,148.06,8.1917099]
[1749190751607,4.63780876,148.12,148.06,8.1917099]
[1749190751803,14.23157019,148.11,148.03,34.86]
[1749190752108,43.0317099,148.13,148.03,34.86]
[1749190752109,0.04398182,148.08,148.06,0.04881987]
[1749190752505,4.63784336,148.07,148.06,0.04881987]
[1749190753008,4.6378432,148.07,148.06,0.04881987]
[1749190753404,7.48308771,148.07,148.06,0.04881987]
[1749190753611,0.04398182,148.08,148.06,8.24052977]
[1749190753799,4.63780496,148.07,148.06,14.99142977]
[1749190754003,4.63780496,148.07,148.06,6.79971987]
[1749190754206,0.04398182,148.08,148.06,0.04881987]
[1749190755006,6.79398182,148.08,148.06,0.04881987]
[1749190755207,0.04398182,148.08,148.06,0.04881987]
[1749190755411,11.38868423,148.07,148.02,6.7524]
[1749190755707,6.7508,148.07,148.02,14.9441099]
[1749190755907,6.7508,148.07,148.02,6.7524]
[1749190756106,6.7508,148.07,148.03,8.1917099]
[1749190756508,0.04955269,148.06,148.04,0.05181579]
[1749190757715,0.04955269,148.06,148.04,6.80361579]
[1749190758213,0.04955269,148.06,148.05,6.7513]
[1749190758711,0.04955269,148.06,148.04,0.05181579]
[1749190759415,0.04955269,148.06,148.04,6.80321579]
[1749190760505,0.04955269,148.06,148.04,0.05181579]
[1749190761606,0.04955269,148.06,148.04,6.80351579]
[1749190762613,0.04955269,148.06,148.05,6.7513]
[1749190772821,0.04955269,148.06,148.04,0.05181579]
[1749190773824,6.80045269,148.06,148.04,0.05181579]
[1749190774016,35.68,148.05,148.04,0.05181579]
[1749190774819,35.68,148.05,148.0,4.78694058]
[1749190775018,35.68,148.05,148.01,6.7528]
[1749190775622,35.68,148.05,148.02,6.7526]
[1749190775821,35.68,148.05,148.02,6.80049657]
[1749190776017,35.68,148.05,148.02,0.04789657]
[1749190776718,42.4315,148.05,148.02,0.04789657]
[1749190778325,4.78694058,148.03,147.97,6.7546]
[1749190778624,4.78694058,148.03,147.96,4.78694058]
[1749190779419,0.04425083,148.01,147.98,0.04531925]
[1749190781219,35.74425083,148.01,147.98,0.04531925]
[1749190782019,6.7539,148.0,147.98,0.04531925]
[1749190782514,35.74425083,148.01,147.99,11.54094058]
[1749190782719,0.04425083,148.01,147.99,4.78694058]
[1749190783024,0.04425083,148.01,148.0,6.7536]
[1749190784220,0.04425083,148.01,147.99,4.78694058]
[1749190784221,0.04425083,148.01,147.99,6.7539]
[1749190784426,0.04425083,148.01,147.99,4.78694058]
[1749190784821,0.04425083,148.01,147.98,6.79961925]
[1749190786424,0.04425083,148.01,147.99,6.754]
[1749190786629,0.04425083,148.01,147.98,0.04531925]
[1749190786928,35.24,148.0,147.98,0.04531925]
[1749190787430,41.9939,148.0,147.98,0.04531925]
[1749190787624,35.24,148.0,147.98,0.04531925]
[1749190788529,41.9937,148.0,147.98,0.04531925]
[1749190788729,35.24,148.0,147.98,0.04531925]
[1749190790427,41.9939,148.0,147.98,0.04531925]
[1749190792121,35.24,148.0,147.98,0.04531925]
[1749190793734,35.24,148.0,147.98,6.79971925]
[1749190794130,35.24,148.0,147.99,6.754]
[1749190794528,35.24,148.0,147.98,0.04531925]
[1749190796833,35.24,148.0,147.99,6.754]
[1749190797032,0.04425083,148.01,147.98,0.04531925]
[1749190797431,0.04425083,148.01,147.99,6.7538]
[1749190798633,0.04425083,148.01,147.98,6.79961925]
[1749190798839,0.04425083,148.01,147.98,0.04531925]
[1749190799738,6.7538,148.0,147.98,0.04531925]
[1749190801235,0.04425083,148.01,147.98,0.04531925]
[1749190801730,0.04425083,148.01,147.99,6.7537]
[1749190802941,0.04425083,148.01,147.98,0.04531925]
[1749190803344,0.04425083,148.01,147.99,6.7537]
[1749190803837,0.04425083,148.01,147.98,6.79951925]
[1749190804042,0.04425083,148.01,147.98,0.04531925]
[1749190804545,4.79069027,147.99,147.9,7.03019027]
[1749190804743,4.79069027,147.97,147.9,7.03019027]
[1749190804937,6.7557,147.96,147.92,6.7571]
[1749190805244,7.61208677,147.97,147.89,4.79546552]
[1749190805440,2.8169661,147.96,147.89,4.79546552]
[1749190805645,0.04570601,147.94,147.91,0.04719842]
[1749190805847,35.30570601,147.94,147.91,0.04719842]
[1749190806243,6.7568,147.93,147.91,0.04719842]
[1749190806445,35.30570601,147.94,147.91,0.04719842]
[1749190806846,42.06220601,147.94,147.91,0.04719842]
[1749190808844,35.30570601,147.94,147.91,0.04719842]
[1749190809244,35.30570601,147.94,147.91,6.80469842]
[1749190809445,42.06190601,147.94,147.91,0.04719842]
[1749190811045,6.7567,147.93,147.91,0.04719842]
[1749190811241,35.30570601,147.94,147.91,0.04719842]
[1749190811441,42.06220601,147.94,147.91,0.04719842]
[1749190813048,389.12,147.93,147.67,354.0]
[1749190813248,29.9037114,147.68,147.38,2.1963]
[1749190813447,4.7968557,147.56,147.36,39.02]
[1749190813650,20.31,147.66,147.36,39.02]
[1749190813651,39.02,147.61,147.41,4.7968557]
[1749190813845,39.02,147.61,147.42,432.9568557]
[1749190814051,4.7968557,147.51,147.5,0.04466925]
[1749190814253,4.7968557,147.51,147.49,0.04635851]
[1749190814454,4.7968557,147.5,147.49,0.04296703]
[1749190814848,0.04572352,147.51,147.49,0.04296703]
[1749190815051,4.84257922,147.51,147.49,0.04296703]
[1749190815249,8.31839854,147.51,147.49,0.04296703]
[1749190815650,5.03162623,147.5,147.49,0.04296703]
[1749190815851,0.04572352,147.51,147.49,0.04296703]
[1749190816350,6.7763,147.5,147.49,0.04296703]
[1749190817953,0.04572352,147.51,147.49,0.04296703]
[1749190818955,6.4277672,147.5,147.49,0.04296703]
[1749190819157,0.04572352,147.51,147.49,0.04296703]
[1749190824259,0.04572352,147.51,147.49,6.81976703]
[1749190824962,0.04572352,147.51,147.5,6.7764]
[1749190828067,39.1,147.6,147.5,47.37267502]
[1749190828967,8.27267502,147.59,147.47,39.12]
[1749190829162,0.05072889,147.54,147.52,0.04685316]
[1749190835265,0.05072889,147.54,147.52,8.31952818]
[1749190835872,39.12,147.63,147.52,47.43952818]
[1749190836070,238.7965,147.67,147.52,47.43952818]
[1749190836071,273.4282,147.67,147.6,8.25354193]
[1749190836267,273.4282,147.67,147.63,8.25118081]
[1749190836577,39.12,147.67,147.64,8.2501087]
[1749190836976,39.17130789,147.67,147.64,8.2941291]
[1749190837271,39.17130789,147.67,147.64,0.0440204]
[1749190837473,6.7695,147.65,147.64,0.0440204]
[1749190837777,47.42141659,147.67,147.64,0.0440204]
[1749190838977,54.19031659,147.67,147.64,0.0440204]
[1749190839275,47.42141659,147.67,147.64,0.0440204]
[1749190841180,6.7718,147.6,147.55,6.7737]
[1749190841482,8.25919402,147.62,147.55,39.12]
[1749190841878,6.7714,147.61,147.55,45.894]